fUST/lending_fUST_20250503
["ID","MTS","AMOUNT","RATE_DAILY","PERIOD"]
[359706709,1746269246042,-400.0,0.00019322,2]
[359706710,1746269246061,-400.0,0.00019322,2]
[359706711,1746269246082,-400.0,0.00019322,2]
[359706712,1746269246102,-515.79,0.00019322,2]
[359706713,1746269246121,-977.12,0.00019322,2]
[359706714,1746269246141,-400.0,0.00019322,2]
[359706715,1746269246165,-400.0,0.00019322,2]
[359706716,1746269246186,-400.0,0.00019322,2]
[359706717,1746269246206,-400.0,0.00019322,2]
[359706718,1746269246228,-400.0,0.00019322,2]
[359706719,1746269246249,-400.0,0.00019322,2]
[359706720,1746269246269,-571.46,0.00019322,2]
[359706721,1746269246290,-306.75,0.00019322,2]
[359706722,1746269246311,-400.0,0.00019322,2]
[359706723,1746269246332,-568.31,0.00019322,2]
[359706724,1746269246352,-420.62,0.00019322,2]
[359706725,1746269246373,-400.0,0.00019322,2]
[359706726,1746269246394,-400.0,0.00019322,2]
[359706727,1746269246418,-400.0,0.00019322,2]
[359706728,1746269246438,-400.0,0.00019322,2]
[359706729,1746269246460,-400.0,0.00019322,2]
[359706730,1746269246480,-471.84,0.00019322,2]
[359706731,1746269246500,-400.0,0.00019322,2]
[359706732,1746269246521,-400.0,0.00019322,2]
[359706733,1746269246540,-400.0,0.00019322,2]
[359706734,1746269246561,-400.0,0.00019322,2]
[359706735,1746269246583,-924.57,0.00019322,2]
[359706736,1746269246603,-533.03,0.00019322,2]
[359706737,1746269246624,-504.41,0.00019322,2]
[359706738,1746269246645,-400.0,0.00019322,2]
[359706739,1746269246666,-2095.14,0.00019322,2]
[359706740,1746269246686,-400.0,0.00019323,2]
[359706741,1746269246706,-400.0,0.00019323,2]
[359706742,1746269246727,-400.0,0.00019323,2]
[359706743,1746269246747,-400.0,0.00019323,2]
[359706744,1746269246768,-476.17,0.00019323,2]
[359706745,1746269246789,-400.0,0.00019323,2]
[359706746,1746269246810,-400.0,0.00019323,2]
[359706747,1746269247042,-1269.91,0.00019323,2]
[359706748,1746269247063,-730.12,0.00019323,2]
[359706749,1746269247084,-888.79,0.00019323,2]
[359706750,1746269247104,-400.0,0.00019323,2]
[359706751,1746269247125,-400.0,0.00019324,2]
[359706752,1746269247145,-400.0,0.00019324,2]
[359706753,1746269247164,-400.0,0.00019324,2]
[359706754,1746269247184,-400.0,0.00019324,2]
[359706755,1746269247203,-400.0,0.00019324,2]
[359706756,1746269247224,-400.0,0.00019324,2]
[359706757,1746269247243,-400.0,0.00019325,2]
[359706758,1746269247265,-400.0,0.00019325,2]
[359706759,1746269247285,-400.0,0.00019325,2]
[359706760,1746269247305,-400.0,0.00019325,2]
[359706761,1746269247326,-400.0,0.00019325,2]
[359706762,1746269247347,-400.0,0.00019325,2]
[359706763,1746269247367,-400.0,0.00019325,2]
[359706764,1746269247389,-400.0,0.00019325,2]
[359706765,1746269247410,-400.0,0.00019325,2]
[359706766,1746269247433,-400.0,0.00019325,2]
[359706767,1746269247453,-400.0,0.00019325,2]
[359706768,1746269247473,-400.0,0.00019325,2]
[359706769,1746269247495,-400.0,0.00019325,2]
[359706770,1746269247517,-487.62,0.00019325,2]
[359706771,1746269247537,-400.0,0.00019325,2]
[359706772,1746269247558,-400.0,0.00019325,2]
[359706773,1746269247579,-151.0,0.00019325,2]
[359706774,1746269247600,-151.0,0.00019325,2]
[359706775,1746269247621,-400.0,0.00019325,2]
[359706776,1746269247641,-400.0,0.00019325,2]
[359706777,1746269247661,-299.9,0.00019325,2]
[359706778,1746269247681,-400.0,0.00019325,2]
[359706779,1746269247701,-400.0,0.00019325,2]
[359706780,1746269247722,-400.0,0.00019325,2]
[359706781,1746269247742,-485.79,0.00019325,2]
[359706782,1746269247762,-183.37730436,0.00019325,2]
[359706783,1746269247783,-397.92,0.00019325,2]
[359706784,1746269247805,-355.66941476,0.00019325,2]
[359706785,1746269247827,-400.0,0.00019325,2]
[359706786,1746269247848,-400.0,0.00019325,2]
[359706787,1746269247869,-400.0,0.00019325,2]
[359706788,1746269247890,-400.0,0.00019325,2]
[359706789,1746269247910,-296.19083168,0.00019325,2]
[359706790,1746269247932,-1246.66,0.00019325,2]
[359706791,1746269247953,-400.0,0.00019325,2]
[359706792,1746269247973,-400.0,0.00019325,2]
[359706793,1746269247993,-400.0,0.00019325,2]
[359706794,1746269248014,-2164.69,0.00019325,2]
[359706795,1746269248033,-400.0,0.00019325,2]
[359706796,1746269248053,-262.81755516,0.00019325,2]
[359706797,1746269248228,-400.0,0.00019325,2]
[359706798,1746269248251,-400.0,0.00019325,2]
[359706799,1746269248272,-400.0,0.00019325,2]
[359706800,1746269248293,-400.0,0.00019325,2]
[359706801,1746269248313,-151.0,0.00019327,2]
[359706802,1746269248333,-151.0,0.00019327,2]
[359706803,1746269248353,-151.0,0.00019329,2]
[359706804,1746269248375,-151.0,0.00019329,2]
[359706805,1746269248396,-151.0,0.00019332,2]
[359706806,1746269248420,-165.332014,0.00019332,2]
[359706807,1746269248442,-151.0,0.00019333,2]
[359706808,1746269248463,-12601.56422439,0.00019333,3]
[359706809,1746269248483,-841.47485993,0.00019333,3]
[359706810,1746269248509,-182.16284668,0.00019333,3]
[359706811,1746269248530,-500.78577892,0.00019373,2]
[359706812,1746269248549,-500.82779148,0.00019373,2]
[359706813,1746269248570,-151.0,0.00019373,2]
[359706814,1746269248593,-3000.0,0.000194,2]
[359706815,1746269248613,-545.0,0.00019469,2]
[359706816,1746269248635,-403.0,0.00019469,2]
[359706817,1746269248657,-707.0,0.00019469,2]
[359706818,1746269248677,-2244.0,0.00019469,2]
[359706819,1746269248697,-501.06525225,0.00019537,2]
[359706820,1746269248717,-294.01585497,0.00019593,2]
[359706821,1746269248738,-400.0,0.00019593,2]
[359706822,1746269248759,-400.0,0.00019594,2]
[359706823,1746269248779,-400.0,0.00019594,2]
[359706824,1746269248800,-512.78,0.00019594,2]
[359706825,1746269248820,-400.0,0.00019594,2]
[359706826,1746269248842,-2307.93,0.00019594,2]
[359706827,1746269248864,-854.19,0.00019594,2]
[359706828,1746269248886,-410.46,0.00019594,2]
[359706829,1746269248906,-400.0,0.00019594,2]
[359706830,1746269248926,-452.87,0.00019594,2]
[359706831,1746269248946,-1013.6,0.00019594,2]
[359706832,1746269248966,-496.97,0.00019594,2]
[359706833,1746269248987,-612.09,0.00019594,2]
[359706834,1746269249008,-400.0,0.00019594,2]
[359706835,1746269249029,-400.0,0.00019594,2]
[359706836,1746269249049,-1262.92,0.00019596,2]
[359706837,1746269249069,-400.0,0.00019596,2]
[359706838,1746269249090,-400.0,0.00019596,2]
[359706839,1746269249110,-400.0,0.00019596,2]
[359706840,1746269249131,-515.79,0.00019596,2]
[359706841,1746269249151,-977.12,0.00019596,2]
[359706842,1746269249171,-400.0,0.00019596,2]
[359706843,1746269249191,-400.0,0.00019596,2]
[359706844,1746269249211,-400.0,0.00019596,2]
[359706845,1746269249232,-400.0,0.00019596,2]
[359706846,1746269249253,-400.0,0.00019596,2]
[359706847,1746269249273,-400.0,0.00019596,2]
[359706848,1746269249295,-571.46,0.00019596,2]
[359706849,1746269249315,-400.0,0.00019596,2]
[359706850,1746269249337,-568.31,0.00019596,2]
[359706851,1746269249358,-400.0,0.00019596,2]
[359706852,1746269249379,-400.0,0.00019596,2]
[359706853,1746269249399,-400.0,0.00019596,2]
[359706854,1746269249421,-400.0,0.00019596,2]
[359706855,1746269249442,-400.0,0.00019596,2]
[359706856,1746269249463,-471.84,0.00019596,2]
[359706857,1746269249482,-400.0,0.00019596,2]
[359706858,1746269249505,-400.0,0.00019596,2]
[359706859,1746269249524,-173.71059485,0.00019596,2]
[359706860,1746269249544,-400.0,0.00019596,2]
[359706861,1746269249565,-924.57,0.00019596,2]
[359706862,1746269249584,-533.03,0.00019596,2]
[359706863,1746269249606,-504.41,0.00019596,2]
[359706864,1746269249627,-400.0,0.00019596,2]
[359706865,1746269249647,-2095.14,0.00019596,2]
[359706866,1746269249668,-400.0,0.00019597,2]
[359706867,1746269249688,-400.0,0.00019597,2]
[359706868,1746269249709,-400.0,0.00019597,2]
[359706869,1746269249729,-168.39,0.00019597,2]
[359706870,1746269249750,-476.17,0.00019597,2]
[359706871,1746269249770,-400.0,0.00019597,2]
[359706872,1746269249790,-400.0,0.00019597,2]
[359706873,1746269249810,-1269.91,0.00019597,2]
[359706874,1746269249834,-730.12,0.00019597,2]
[359706875,1746269249856,-888.79,0.00019597,2]
[359706876,1746269249876,-400.0,0.00019597,2]
[359706877,1746269249895,-400.0,0.00019598,2]
[359706878,1746269249914,-353.95604588,0.00019598,2]
[359706879,1746269249937,-400.0,0.00019598,2]
[359706880,1746269249959,-400.0,0.00019598,2]
[359706881,1746269249979,-400.0,0.00019598,2]
[359706882,1746269250002,-400.0,0.00019598,2]
[359706883,1746269250022,-400.0,0.00019599,2]
[359706884,1746269250044,-400.0,0.00019599,2]
[359706885,1746269250063,-400.0,0.00019599,2]
[359706886,1746269250083,-400.0,0.00019599,2]
[359706887,1746269250103,-400.0,0.00019599,2]
[359706888,1746269250124,-400.0,0.00019599,2]
[359706889,1746269250144,-212.26447749,0.00019599,2]
[359706890,1746269250164,-400.0,0.00019599,2]
[359706891,1746269250184,-400.0,0.00019599,2]
[359706892,1746269250206,-400.0,0.00019599,2]
[359706893,1746269250228,-400.0,0.00019599,2]
[359706894,1746269250248,-400.0,0.00019599,2]
[359706895,1746269250269,-400.0,0.00019599,2]
[359706896,1746269250290,-487.62,0.00019599,2]
[359706897,1746269250310,-400.0,0.00019599,2]
[359706898,1746269250330,-400.0,0.00019599,2]
[359706899,1746269250351,-400.0,0.00019599,2]
[359706900,1746269250372,-400.0,0.00019599,2]
[359706901,1746269250392,-549.30323926,0.00019599,2]
[359706902,1746269250416,-400.0,0.00019599,2]
[359706903,1746269250437,-245.3792958,0.00019599,2]
[359706904,1746269250459,-485.79,0.00019599,2]
[359706905,1746269250480,-400.0,0.00019599,2]
[359706906,1746269250502,-400.0,0.00019599,2]
[359706907,1746269250522,-399.84078606,0.00019599,2]
[359706908,1746269250542,-400.0,0.00019599,2]
[359706909,1746269250562,-1246.66,0.00019599,2]
[359706910,1746269250586,-400.0,0.00019599,2]
[359706911,1746269250608,-400.0,0.00019599,2]
[359706912,1746269250630,-400.0,0.00019599,2]
[359706913,1746269250651,-2164.69,0.00019599,2]
[359706914,1746269250672,-400.0,0.00019599,2]
[359706915,1746269250692,-400.0,0.00019599,2]
[359706916,1746269250712,-400.0,0.00019599,2]
[359706917,1746269250732,-400.0,0.00019599,2]
[359706918,1746269250752,-778.55522594,0.00019617,2]
[359706919,1746269250771,-400.0,0.00019867,2]
[359706920,1746269250792,-400.0,0.00019868,2]
[359706921,1746269250812,-400.0,0.00019868,2]
[359706922,1746269250833,-512.78,0.00019868,2]
[359706923,1746269250854,-400.0,0.00019868,2]
[359706924,1746269250874,-2307.93,0.00019868,2]
[359706925,1746269250896,-854.19,0.00019868,2]
[359706926,1746269250916,-410.46,0.00019868,2]
[359706927,1746269250937,-400.0,0.00019868,2]
[359706928,1746269250957,-452.87,0.00019868,2]
[359706929,1746269250978,-1013.6,0.00019868,2]
[359706930,1746269251000,-496.97,0.00019868,2]
[359706931,1746269251021,-612.09,0.00019868,2]
[359706932,1746269251042,-400.0,0.00019868,2]
[359706933,1746269251062,-493.04173791,0.00019868,2]
[359706934,1746269251082,-1262.92,0.0001987,2]
[359706935,1746269251103,-400.0,0.0001987,2]
[359706936,1746269251124,-400.0,0.0001987,2]
[359706937,1746269251145,-400.0,0.0001987,2]
[359706938,1746269251168,-515.79,0.0001987,2]
[359706939,1746269251190,-977.12,0.0001987,2]
[359706940,1746269251210,-400.0,0.0001987,2]
[359706941,1746269251235,-400.0,0.0001987,2]
[359706942,1746269251254,-400.0,0.0001987,2]
[359706943,1746269251274,-400.0,0.0001987,2]
[359706944,1746269251294,-400.0,0.0001987,2]
[359706945,1746269251314,-400.0,0.0001987,2]
[359706946,1746269251336,-571.46,0.0001987,2]
[359706947,1746269251359,-400.0,0.0001987,2]
[359706948,1746269251380,-568.31,0.0001987,2]
[359706949,1746269251400,-400.0,0.0001987,2]
[359706950,1746269251422,-400.0,0.0001987,2]
[359706951,1746269251442,-400.0,0.0001987,2]
[359706952,1746269251463,-305.6996574,0.0001987,2]
[359706953,1746269251482,-151.06368939,0.0001987,2]
[359706954,1746269251506,-471.84,0.0001987,2]
[359706955,1746269251525,-400.0,0.0001987,2]
[359706956,1746269251546,-400.0,0.0001987,2]
[359706957,1746269251568,-400.0,0.0001987,2]
[359706958,1746269251589,-924.57,0.0001987,2]
[359706959,1746269251612,-533.03,0.0001987,2]
[359706960,1746269251634,-504.41,0.0001987,2]
[359706961,1746269251655,-400.0,0.0001987,2]
[359706962,1746269251675,-2095.14,0.0001987,2]
[359706963,1746269251696,-400.0,0.00019871,2]
[359706964,1746269251718,-400.0,0.00019871,2]
[359706965,1746269251738,-400.0,0.00019871,2]
[359706966,1746269251759,-476.17,0.00019871,2]
[359706967,1746269251781,-400.0,0.00019871,2]
[359706968,1746269251802,-400.0,0.00019871,2]
[359706969,1746269251823,-1269.91,0.00019871,2]
[359706970,1746269251843,-730.12,0.00019871,2]
[359706971,1746269252005,-888.79,0.00019871,2]
[359706972,1746269252027,-487.18932747,0.00019871,2]
[359706973,1746269252049,-400.0,0.00019872,2]
[359706974,1746269252070,-400.0,0.00019872,2]
[359706975,1746269252091,-400.0,0.00019872,2]
[359706976,1746269252114,-400.0,0.00019872,2]
[359706977,1746269252135,-400.0,0.00019872,2]
[359706978,1746269252155,-500.0,0.00019873,2]
[359706979,1746269252176,-321.28955733,0.00019873,2]
[359706980,1746269252197,-505.78775529,0.00019873,2]
[359706981,1746269252217,-500.0,0.00019873,2]
[359706982,1746269252237,-500.0,0.00019873,2]
[359706983,1746269252258,-500.0,0.00019873,2]
[359706984,1746269252279,-500.0,0.00019873,2]
[359706985,1746269252299,-500.0,0.00019873,2]
[359706986,1746269252322,-505.00005022,0.00019873,2]
[359706987,1746269252343,-500.0,0.00019873,2]
[359706988,1746269252364,-445.01008177,0.00019873,2]
[359706989,1746269252386,-500.0,0.00019873,2]
[359706990,1746269252407,-580.35132757,0.00019873,2]
[359706991,1746269252431,-522.50746598,0.00019873,2]
[359706992,1746269252451,-500.0,0.00019873,2]
[359706993,1746269252472,-504.25905305,0.00019873,2]
[359706994,1746269252492,-500.0,0.00019873,2]
[359706995,1746269252514,-530.58918017,0.00019873,2]
[359706996,1746269252534,-500.0,0.00019873,2]
[359706997,1746269252555,-500.0,0.00019873,2]
[359706998,1746269252576,-500.0,0.00019873,2]
[359706999,1746269252597,-501.1098328,0.00019873,2]
[359707000,1746269252619,-400.0,0.00019873,2]
[359707001,1746269252640,-400.0,0.00019873,2]
[359707002,1746269252661,-400.0,0.00019873,2]
[359707003,1746269252681,-400.0,0.00019873,2]
[359707004,1746269252702,-400.0,0.00019873,2]
[359707005,1746269252722,-400.0,0.00019873,2]
[359707006,1746269252742,-400.0,0.00019873,2]
[359707007,1746269252762,-357.03791384,0.00019873,2]
[359707008,1746269252783,-409.1390974,0.00019873,2]
[359707009,1746269252804,-303.58926429,0.00019873,2]
[359707010,1746269252824,-400.0,0.00019873,2]
[359707011,1746269252844,-400.0,0.00019873,2]
[359707012,1746269252864,-487.62,0.00019873,2]
[359707013,1746269252885,-328.26846581,0.00019873,2]
[359707014,1746269252905,-400.0,0.00019873,2]
[359707015,1746269252928,-400.0,0.00019873,2]
[359707016,1746269252951,-400.0,0.00019873,2]
[359707017,1746269252971,-400.0,0.00019873,2]
[359707018,1746269252995,-485.79,0.00019873,2]
[359707019,1746269253015,-219.09622855,0.00019873,2]
[359707020,1746269253037,-400.0,0.00019873,2]
[359707021,1746269253059,-400.0,0.00019873,2]
[359707022,1746269253080,-1246.66,0.00019873,2]
[359707023,1746269253102,-400.0,0.00019873,2]
[359707024,1746269253124,-400.0,0.00019873,2]
[359707025,1746269253147,-400.0,0.00019873,2]
[359707026,1746269253167,-2164.69,0.00019873,2]
[359707027,1746269253188,-400.0,0.00019873,2]
[359707028,1746269253209,-400.0,0.00019873,2]
[359707029,1746269253232,-400.0,0.00019873,2]
[359707030,1746269253253,-400.0,0.00019873,2]
[359707031,1746269253275,-18149.12872158,0.000199,2]
[359707032,1746269253296,-500.0,0.00019973,2]
[359707033,1746269253316,-500.85087212,0.00019973,2]
[359707034,1746269253337,-421.87288032,0.00019973,2]
[359707035,1746269253358,-509.92371388,0.00019973,2]
[359707036,1746269253379,-500.0,0.00019973,2]
[359707037,1746269253399,-201.55683969,0.00019973,2]
[359707038,1746269253428,-500.0,0.00019973,2]
[359707039,1746269253449,-597.69959461,0.00019973,2]
[359707040,1746269253469,-500.0,0.00019973,2]
[359707041,1746269253490,-12500.0,0.00019982,2]
[359707042,1746269253510,-12500.0,0.00019982,2]
[359707043,1746269253531,-2141.6442199,0.0001999,2]
[359707044,1746269253553,-12500.0,0.00019991,2]
[359707045,1746269253574,-12500.0,0.00019991,2]
[359707046,1746269253600,-12500.0,0.00019991,2]
[359707047,1746269253620,-500.0,0.0002,2]
[359707048,1746269253640,-463.12053807,0.0002,2]
[359707049,1746269253661,-12500.0,0.0002,2]
[359707050,1746269253681,-2204.80821336,0.0002,2]
[359707051,1746269253701,-12500.0,0.0002,2]
[359707052,1746269253721,-2000.0,0.0002,4]
[359707053,1746269253743,-151.4697106,0.0002,2]
[359707054,1746269253763,-50000.0,0.0002,2]
[359707055,1746269253783,-1400.0,0.00020068,2]
[359707056,1746269253803,-400.0,0.00020141,2]
[359707057,1746269253826,-400.0,0.00020142,2]
[359707058,1746269253848,-400.0,0.00020142,2]
[359707059,1746269253870,-512.78,0.00020142,2]
[359707060,1746269253892,-400.0,0.00020142,2]
[359707061,1746269253914,-2307.93,0.00020142,2]
[359707062,1746269253937,-854.19,0.00020142,2]
[359707063,1746269253957,-410.46,0.00020142,2]
[359707064,1746269253981,-400.0,0.00020142,2]
[359707065,1746269254003,-452.87,0.00020142,2]
[359707066,1746269254024,-1013.6,0.00020142,2]
[359707067,1746269254046,-496.97,0.00020142,2]
[359707068,1746269254068,-612.09,0.00020142,2]
[359707069,1746269254090,-400.0,0.00020142,2]
[359707070,1746269254111,-1262.92,0.00020144,2]
[359707071,1746269254134,-400.0,0.00020144,2]
[359707072,1746269254155,-400.0,0.00020144,2]
[359707073,1746269254177,-400.0,0.00020144,2]
[359707074,1746269254198,-515.79,0.00020144,2]
[359707075,1746269254220,-977.12,0.00020144,2]
[359707076,1746269254241,-400.0,0.00020144,2]
[359707077,1746269254264,-400.0,0.00020144,2]
[359707078,1746269254286,-400.0,0.00020144,2]
[359707079,1746269254308,-400.0,0.00020144,2]
[359707080,1746269254329,-400.0,0.00020144,2]
[359707081,1746269254350,-538.83568211,0.00020144,2]
[359707082,1746269254370,-571.46,0.00020144,2]
[359707083,1746269254392,-400.0,0.00020144,2]
[359707084,1746269254415,-568.31,0.00020144,2]
[359707085,1746269254437,-400.0,0.00020144,2]
[359707086,1746269254459,-400.0,0.00020144,2]
[359707087,1746269254480,-400.0,0.00020144,2]
[359707088,1746269254502,-471.84,0.00020144,2]
[359707089,1746269254522,-400.0,0.00020144,2]
[359707090,1746269254543,-400.0,0.00020144,2]
[359707091,1746269254563,-159.65823508,0.00020144,2]
[359707092,1746269254586,-924.57,0.00020144,2]
[359707093,1746269254607,-533.03,0.00020144,2]
[359707094,1746269254628,-504.41,0.00020144,2]
[359707095,1746269254649,-400.0,0.00020144,2]
[359707096,1746269254670,-2095.14,0.00020144,2]
[359707097,1746269254691,-400.0,0.00020145,2]
[359707098,1746269254711,-400.0,0.00020145,2]
[359707099,1746269254732,-400.0,0.00020145,2]
[359707100,1746269254752,-476.17,0.00020145,2]
[359707101,1746269254773,-400.0,0.00020145,2]
[359707102,1746269254793,-454.79960878,0.00020145,2]
[359707103,1746269254814,-1269.91,0.00020145,2]
[359707104,1746269254835,-730.12,0.00020145,2]
[359707105,1746269254857,-888.79,0.00020145,2]
[359707106,1746269254879,-400.0,0.00020146,2]
[359707107,1746269254901,-407.92382197,0.00020146,2]
[359707108,1746269254923,-400.0,0.00020146,2]
[359707109,1746269254946,-400.0,0.00020146,2]
[359707110,1746269254968,-460.48,0.00020146,2]
[359707111,1746269254989,-400.0,0.00020147,2]
[359707112,1746269255010,-400.0,0.00020147,2]
[359707113,1746269255032,-400.0,0.00020147,2]
[359707114,1746269255053,-400.0,0.00020147,2]
[359707115,1746269255073,-400.0,0.00020147,2]
[359707116,1746269255093,-400.0,0.00020147,2]
[359707117,1746269255114,-400.0,0.00020147,2]
[359707118,1746269255135,-400.0,0.00020147,2]
[359707119,1746269255156,-400.0,0.00020147,2]
[359707120,1746269255176,-487.62,0.00020147,2]
[359707121,1746269255198,-400.0,0.00020147,2]
[359707122,1746269255219,-400.0,0.00020147,2]
[359707123,1746269255242,-400.0,0.00020147,2]
[359707124,1746269255263,-400.0,0.00020147,2]
[359707125,1746269255284,-485.79,0.00020147,2]
[359707126,1746269255304,-400.0,0.00020147,2]
[359707127,1746269255324,-400.0,0.00020147,2]
[359707128,1746269255344,-1246.66,0.00020147,2]
[359707129,1746269255366,-400.0,0.00020147,2]
[359707130,1746269255386,-400.0,0.00020147,2]
[359707131,1746269255407,-400.0,0.00020147,2]
[359707132,1746269255430,-2164.69,0.00020147,2]
[359707133,1746269255450,-400.0,0.00020147,2]
[359707134,1746269255472,-400.0,0.00020147,2]
[359707135,1746269255496,-400.0,0.00020147,2]
[359707136,1746269255517,-408.25622231,0.00020147,2]
[359707137,1746269255537,-1000.0,0.00020209,5]
[359707138,1746269255558,-5228.81884026,0.00020219,2]
[359707139,1746269255578,-160.0,0.00020406,3]
[359707140,1746269255600,-550.78,0.00020409,3]
[359707141,1746269255622,-400.0,0.00020415,2]
[359707142,1746269255776,-400.0,0.00020416,2]
[359707143,1746269255798,-400.0,0.00020416,2]
[359707144,1746269255820,-512.78,0.00020416,2]
[359707145,1746269255840,-400.0,0.00020416,2]
[359707146,1746269255861,-2307.93,0.00020416,2]
[359707147,1746269255883,-854.19,0.00020416,2]
[359707148,1746269255903,-410.46,0.00020416,2]
[359707149,1746269255924,-400.0,0.00020416,2]
[359707150,1746269255946,-452.87,0.00020416,2]
[359707151,1746269255966,-1013.6,0.00020416,2]
[359707152,1746269255988,-496.97,0.00020416,2]
[359707153,1746269256008,-612.09,0.00020416,2]
[359707154,1746269256028,-400.0,0.00020416,2]
[359707155,1746269256048,-1262.92,0.00020418,2]
[359707156,1746269256070,-400.0,0.00020418,2]
[359707157,1746269256091,-400.0,0.00020418,2]
[359707158,1746269256111,-400.0,0.00020418,2]
[359707159,1746269256131,-515.79,0.00020418,2]
[359707160,1746269256152,-977.12,0.00020418,2]
[359707161,1746269256172,-400.0,0.00020418,2]
[359707162,1746269256193,-400.0,0.00020418,2]
[359707163,1746269256214,-400.0,0.00020418,2]
[359707164,1746269256235,-400.0,0.00020418,2]
[359707165,1746269256255,-400.0,0.00020418,2]
[359707166,1746269256275,-571.46,0.00020418,2]
[359707167,1746269256295,-400.0,0.00020418,2]
[359707168,1746269256316,-568.31,0.00020418,2]
[359707169,1746269256337,-400.0,0.00020418,2]
[359707170,1746269256359,-400.0,0.00020418,2]
[359707171,1746269256380,-400.0,0.00020418,2]
[359707172,1746269256402,-471.84,0.00020418,2]
[359707173,1746269256425,-400.0,0.00020418,2]
[359707174,1746269256447,-182.79091281,0.00020418,2]
[359707175,1746269256470,-924.57,0.00020418,2]
[359707176,1746269256490,-533.03,0.00020418,2]
[359707177,1746269256510,-504.41,0.00020418,2]
[359707178,1746269256531,-400.0,0.00020418,2]
[359707179,1746269256551,-2095.14,0.00020418,2]
[359707180,1746269256571,-180.30138272,0.00020419,2]
[359707181,1746269256593,-400.0,0.00020419,2]
[359707182,1746269256614,-400.0,0.00020419,2]
[359707183,1746269256637,-476.17,0.00020419,2]
[359707184,1746269256657,-400.0,0.00020419,2]
[359707185,1746269256677,-1269.91,0.00020419,2]
[359707186,1746269256698,-730.12,0.00020419,2]
[359707187,1746269256719,-888.79,0.00020419,2]
[359707188,1746269256738,-400.0,0.0002042,2]
[359707189,1746269256759,-419.5,0.0002042,2]
[359707190,1746269256780,-400.0,0.0002042,2]
[359707191,1746269256799,-400.0,0.00020421,2]
[359707192,1746269256820,-400.0,0.00020421,2]
[359707193,1746269256839,-414.30453375,0.00020421,2]
[359707194,1746269256859,-400.0,0.00020421,2]
[359707195,1746269256879,-400.0,0.00020421,2]
[359707196,1746269256899,-400.0,0.00020421,2]
[359707197,1746269256919,-400.0,0.00020421,2]
[359707198,1746269256940,-400.0,0.00020421,2]
[359707199,1746269256960,-237.52363477,0.00020421,2]
[359707200,1746269256980,-487.62,0.00020421,2]
[359707201,1746269257001,-168.86820831,0.00020421,2]
[359707202,1746269257024,-400.0,0.00020421,2]
[359707203,1746269257048,-400.0,0.00020421,2]
[359707204,1746269257070,-400.0,0.00020421,2]
[359707205,1746269257090,-485.79,0.00020421,2]
[359707206,1746269257111,-400.0,0.00020421,2]
[359707207,1746269257133,-400.0,0.00020421,2]
[359707208,1746269257153,-1246.66,0.00020421,2]